bitfinex-derivatives/quotes_SOLF0:USTF0_20241222
["timestamp","ask_amount","ask_price","bid_price","bid_amount"]
[1734858400616,2.7194,184.0,183.96,2.8]
[1734858403523,2.1271566,183.99,183.96,2.8]
[1734858403716,5.0676,184.05,183.96,2.8]
[1734858403922,2.12745042,184.04,183.96,5.5198]
[1734858404122,2.12745042,184.03,183.96,5.5198]
[1734858404422,2.12745042,184.02,183.96,5.5198]
[1734858404622,2.12745042,184.01,183.96,5.5198]
[1734858404918,2.12745042,184.0,183.96,5.5198]
[1734858405123,5.0676,184.05,183.97,2.7197]
[1734858405424,2.12821059,184.04,183.97,2.7197]
[1734858405624,2.12821059,184.03,183.97,2.7197]
[1734858405823,2.12821059,184.02,183.97,2.7197]
[1734858406025,2.12821059,184.01,183.97,2.7197]
[1734858406227,2.12821059,184.0,183.97,2.7197]
[1734858406526,2.7192,184.02,183.97,2.7197]
[1734858406723,2.12817025,184.01,183.97,2.7197]
[1734858406923,2.12817025,184.0,183.97,2.7197]
[1734858407224,2.7192,184.02,183.97,2.7197]
[1734858407419,2.12918652,184.01,183.97,2.7197]
[1734858407615,11.74298932,184.07,183.97,8.94298932]
[1734858407616,2.12918652,184.0,183.97,8.94298932]
[1734858407821,2.8,184.09,183.97,8.94298932]
[1734858408126,8.94298932,184.1,184.0,2.7193]
[1734858408127,2.7188,184.05,184.0,2.7193]
[1734858408327,2.13081559,184.04,184.01,2.8]
[1734858408624,2.13081559,184.03,184.01,2.8]
[1734858408825,2.13081559,184.02,184.01,2.8]
[1734858409420,2.13097458,184.02,184.01,2.8]
[1734858409924,2.13131623,184.02,184.01,2.8]
[1734858412420,11.74298932,184.1,184.01,2.8]
[1734858412730,2.7187,184.05,184.01,2.8]
[1734858413031,2.13310919,184.04,184.01,2.8]
[1734858413328,2.13310919,184.03,184.01,2.8]
[1734858413533,2.13310919,184.02,184.01,2.8]
[1734858413729,2.13310919,184.02,184.01,5.5192]
[1734858413929,2.13310919,184.06,184.01,2.8]
[1734858414128,2.13310919,184.05,184.01,2.8]
[1734858414329,2.13310919,184.04,184.0,8.94298932]
[1734858414530,2.7184,184.07,184.01,2.8]
[1734858414731,2.11973428,184.06,184.01,2.8]
[1734858414932,2.11973428,184.05,184.01,2.8]
[1734858415131,2.11973428,184.04,184.01,2.8]
[1734858415328,2.7184,184.07,184.01,2.8]
[1734858415529,2.1197257,184.06,184.01,2.8]
[1734858415729,2.1197257,184.05,184.01,2.8]
[1734858415930,2.1197257,184.04,184.01,2.8]
[1734858416233,2.7184,184.07,184.01,2.8]
[1734858416533,2.11996024,184.06,184.02,2.719]
[1734858416733,2.11996024,184.05,184.02,2.719]
[1734858416928,2.11996024,184.04,184.02,2.719]
[1734858417134,2.11996024,184.03,184.02,2.719]
[1734858418430,2.11996024,184.03,184.0,8.94298932]
[1734858418633,2.7187,184.05,184.01,2.8]
[1734858418836,2.11832178,184.04,184.01,2.8]
[1734858419025,2.11832178,184.03,184.01,2.8]
[1734858419230,2.11832178,184.02,184.01,2.8]
[1734858420437,2.11832178,184.02,184.0,2.8]
[1734858420639,2.11832178,184.01,184.0,2.8]
[1734858421138,2.11832178,184.01,184.0,5.5194]
[1734858421637,2.11832178,184.01,183.98,8.94298932]
[1734858421838,2.11832178,184.0,183.99,2.8]
[1734858422136,2.11832178,184.0,183.97,2.7198]
[1734858422338,2.7191,184.02,183.98,2.8]
[1734858422538,2.11778376,184.01,183.98,2.8]
[1734858422837,2.11778376,184.0,183.93,60.10586716]
[1734858423033,2.8,184.04,183.93,60.10586716]
[1734858423034,11.06077308,183.99,183.93,60.10586716]
[1734858423237,2.72,183.97,183.93,60.10586716]
[1734858423436,2.11778376,183.96,183.93,60.10586716]
[1734858423628,2.11778376,183.95,183.93,60.10586716]
[1734858423832,2.11778376,183.94,183.93,60.10586716]
[1734858424030,2.11778376,183.94,183.91,93.35127744]
[1734858424031,2.11778376,183.94,183.91,2.8]
[1734858424336,2.11778376,183.93,183.9,2.8]
[1734858424532,2.11778376,183.92,183.9,2.8]
[1734858424735,2.11778376,183.91,183.86,62.90586716]
[1734858425037,2.11778376,183.9,183.86,62.90586716]
[1734858425235,2.11778376,183.89,183.86,62.90586716]
[1734858425433,2.11778376,183.89,183.85,93.93617744]
[1734858425434,2.7208,183.91,183.85,3.3849]
[1734858425632,2.11031353,183.9,183.86,2.8]
[1734858425935,2.11031353,183.89,183.86,2.8]
[1734858426239,2.11031353,183.88,183.86,2.8]
[1734858426436,2.7208,183.91,183.86,2.8]
[1734858426636,2.1081506,183.9,183.86,2.8]
[1734858426834,2.1081506,183.89,183.86,2.8]
[1734858427036,2.1081506,183.88,183.86,2.8]
[1734858427337,2.7208,183.91,183.86,2.8]
[1734858427639,2.10653886,183.9,183.86,2.8]
[1734858427833,1.6499,183.95,183.86,2.8]
[1734858428136,2.10737319,183.94,183.86,2.8]
[1734858428436,2.10737319,183.93,183.86,2.8]
[1734858428641,2.10737319,183.92,183.86,2.8]
[1734858428839,2.7204,183.94,183.88,2.7211]
[1734858429040,2.1077367,183.93,183.88,2.7211]
[1734858429241,2.1077367,183.92,183.88,2.7211]
[1734858429441,2.7204,183.93,183.86,5.5213]
[1734858429633,2.10634442,183.92,183.86,2.8]
[1734858429837,2.7204,183.93,183.86,2.8]
[1734858430039,2.10649699,183.92,183.86,2.8]
[1734858430240,2.7204,183.93,183.86,2.8]
[1734858430440,2.10586776,183.92,183.86,2.8]
[1734858430643,2.7198,183.97,183.88,8.94298932]
[1734858430838,2.10687381,183.96,183.88,8.94298932]
[1734858431038,2.7198,183.97,183.91,2.7207]
[1734858431236,2.10712746,183.96,183.92,2.8]
[1734858431449,2.7198,183.97,183.92,2.8]
[1734858431941,2.7198,183.97,183.92,5.5205]
[1734858433044,2.7198,183.97,183.92,2.8]
[1734858433744,2.72,183.96,183.91,5.5207]
[1734858434041,114.45431721,184.0,183.91,5.5207]
[1734858434245,2.7198,183.97,183.91,5.5207]
[1734858435245,2.7198,183.97,183.92,2.7205]
[1734858436047,2.7197,183.98,183.93,2.7204]
[1734858436247,2.1105508,183.97,183.93,2.7204]
[1734858436448,2.7197,183.98,183.93,2.7204]
[1734858436648,2.11037967,183.97,183.92,2.7205]
[1734858436847,2.7197,183.98,183.92,2.7205]
[1734858437150,2.11046244,183.97,183.92,2.7205]
[1734858437345,2.7197,183.98,183.92,2.7205]
[1734858437545,2.7197,183.98,183.91,2.8]
[1734858437546,4.83040561,183.97,183.91,5.5207]
[1734858437846,2.7199,183.97,183.91,5.5207]
[1734858438347,2.7201,183.96,183.91,2.8]
[1734858438738,2.11024754,183.95,183.9,2.7208]
[1734858438943,2.7201,183.96,183.91,2.78]
[1734858439143,2.1102551,183.95,183.91,2.78]
[1734858439341,2.7201,183.96,183.91,2.78]
[1734858439546,2.11010612,183.95,183.91,2.78]
[1734858439750,2.7201,183.96,183.91,2.78]
[1734858439944,2.10996381,183.95,183.91,2.78]
[1734858440144,8.94298932,183.99,183.89,1.6475]
[1734858440344,2.10998853,183.98,183.9,2.78]
[1734858440643,2.10998853,183.97,183.9,2.78]
[1734858440840,2.7203,183.94,183.9,2.78]
[1734858441037,2.10998853,183.93,183.9,2.78]
[1734858441241,2.72,183.96,183.91,2.7206]
[1734858441438,2.1090789,183.95,183.9,2.78]
[1734858441641,2.1091845,183.94,183.9,2.78]
[1734858441943,8.94298932,183.99,183.9,2.78]
[1734858442148,2.10862737,183.98,183.9,2.78]
[1734858442451,2.7203,183.94,183.9,2.78]
[1734858442846,2.10820066,183.93,183.85,12.32788932]
[1734858443047,4.82880066,183.92,183.88,2.78]
[1734858443247,2.7206,183.92,183.88,2.78]
[1734858444652,2.7206,183.92,183.88,5.5011]
[1734858445252,8.94298932,183.96,183.88,5.5011]
[1734858445449,2.7204,183.93,183.89,2.721]
[1734858445653,8.94298932,183.99,183.88,2.78]
[1734858445955,2.10678801,183.98,183.88,11.72298932]
[1734858446147,2.10678801,183.97,183.88,11.72298932]
[1734858446348,8.94298932,183.99,183.88,11.72298932]
[1734858446349,2.10678801,183.96,183.88,2.78]
[1734858446548,4.82688801,183.95,183.9,2.7208]
[1734858446750,2.10678801,183.94,183.9,2.7208]
[1734858446954,8.94298932,183.99,183.88,2.78]
[1734858447150,2.10654347,183.98,183.88,2.78]
[1734858447449,8.94298932,183.96,183.85,3.3849]
[1734858447652,2.10654347,183.95,183.86,2.78]
[1734858447953,2.7208,183.91,183.86,5.5014]
[1734858449248,2.7213,183.88,183.82,2.722]
[1734858449450,2.78,183.92,183.82,5.502]
[1734858449651,2.10568326,183.91,183.82,5.502]
[1734858449850,2.10568326,183.9,183.82,5.502]
[1734858450048,2.10568326,183.89,183.82,5.502]
[1734858450355,2.10568326,183.88,183.82,5.502]
[1734858450549,2.10534498,183.87,183.82,2.722]
[1734858450756,2.78,183.92,183.82,2.722]
[1734858450949,2.10568893,183.91,183.82,5.522]
[1734858451153,2.10568893,183.9,183.82,5.522]
[1734858451450,2.10568893,183.89,183.82,5.522]
[1734858451657,2.10568893,183.88,183.82,5.522]
[1734858451855,4.3991,183.92,183.82,5.522]
[1734858452056,2.7214,183.87,183.83,2.7218]
[1734858453454,4.3991,183.92,183.82,2.8]
[1734858453660,2.10320092,183.91,183.82,11.74298932]
[1734858453850,8.94298932,183.93,183.82,11.74298932]
[1734858454056,2.10400165,183.92,183.82,11.74298932]
[1734858454255,2.7209,183.9,183.85,2.7214]
[1734858454656,8.94298932,183.93,183.82,11.74298932]
[1734858454856,2.721,183.89,183.82,11.74298932]
[1734858455257,8.94298932,183.93,183.82,11.74298932]
[1734858455452,2.7211,183.88,183.83,2.7217]
[1734858456556,2.7211,183.88,183.84,2.8]
[1734858457061,11.74298932,183.93,183.84,2.8]
[1734858457263,2.10378567,183.92,183.84,2.8]
[1734858457463,8.94298932,183.93,183.84,2.8]
[1734858457763,2.10375976,183.92,183.84,2.8]
[1734858457963,8.94298932,183.93,183.84,2.8]
[1734858458164,2.10393495,183.92,183.84,2.8]
[1734858458360,8.94298932,183.93,183.84,2.8]
[1734858458559,2.7207,183.9,183.85,2.7214]
[1734858458963,2.7205,183.92,183.87,2.7211]
[1734858464564,2.11095525,183.91,183.87,2.7211]
[1734858464866,2.7205,183.92,183.87,2.7211]
[1734858465060,2.11120826,183.91,183.87,2.7211]
[1734858465256,2.7205,183.92,183.87,2.7211]
[1734858465463,2.1113681,183.91,183.87,2.7211]
[1734858465669,2.7205,183.92,183.87,2.7211]
[1734858465870,2.11138547,183.91,183.87,2.7211]
[1734858466069,2.7205,183.92,183.87,2.7211]
[1734858466269,2.11152337,183.91,183.87,2.7211]
[1734858466467,2.7205,183.92,183.87,2.7211]
[1734858466668,2.112592,183.91,183.87,2.7211]
[1734858466867,2.7205,183.92,183.87,2.7211]
[1734858467064,2.11259916,183.91,183.87,2.7211]
[1734858467269,2.11259916,183.9,183.87,2.7211]
[1734858467468,2.7205,183.92,183.87,2.7211]
[1734858467670,2.11420089,183.91,183.87,2.7211]
[1734858467870,2.11420089,183.9,183.86,2.7212]
[1734858468065,10.51588932,183.96,183.84,2.8]
[1734858468267,8.94298932,183.93,183.85,2.78]
[1734858468467,2.11422828,183.92,183.83,2.78]
[1734858468662,2.11422828,183.91,183.83,2.78]
[1734858468866,2.11422828,183.9,183.8,60.10586716]
[1734858469067,2.7211,183.87,183.82,2.7218]
[1734858469369,2.11422828,183.86,183.82,2.7218]
[1734858469570,2.11422828,183.85,183.82,2.7218]
[1734858469775,1.6784,183.92,183.81,2.78]
[1734858470072,2.7213,183.86,183.81,5.502]
[1734858470370,2.11287286,183.85,183.81,5.502]
[1734858470562,2.7213,183.86,183.81,5.502]
[1734858470767,2.11213852,183.85,183.81,5.502]
[1734858471067,2.78,183.89,183.81,2.78]
[1734858471365,2.11159316,183.88,183.79,10.62118932]
[1734858471571,2.11159316,183.87,183.8,2.78]
[1734858471766,2.11154906,183.86,183.8,2.78]
[1734858471972,2.11154906,183.85,183.8,5.502]
[1734858472173,2.7213,183.86,183.8,5.502]
[1734858472468,2.7211,183.87,183.81,2.7219]
[1734858472669,2.11113461,183.86,183.8,2.78]
[1734858472870,4.4584,183.92,183.8,2.78]
[1734858473173,2.7209,183.89,183.83,2.7216]
[1734858473375,2.11122228,183.88,183.83,2.7216]
[1734858473667,2.11122228,183.87,183.83,2.7216]
[1734858473872,2.7209,183.89,183.83,2.7216]
[1734858474077,2.1101385,183.88,183.83,2.7216]
[1734858474372,2.10941411,183.87,183.83,2.7216]
[1734858474574,2.7209,183.89,183.83,2.7216]
[1734858474778,2.11067906,183.88,183.83,2.7216]
[1734858475074,2.11067906,183.87,183.83,2.7216]
[1734858475671,2.11067906,183.87,183.84,2.78]
[1734858477274,4.83187906,183.87,183.84,2.78]
[1734858477475,2.11067906,183.86,183.79,10.62118932]
[1734858477676,2.7217,183.84,183.79,2.78]
[1734858477875,8.94298932,183.87,183.77,61.75256716]
[1734858478177,2.7219,183.82,183.78,2.78]
[1734858478975,10.68348932,183.87,183.78,2.78]
[1734858479276,2.7216,183.84,183.79,2.7222]
[1734858479472,2.1091251,183.83,183.79,2.7222]
[1734858479674,2.7216,183.84,183.79,2.7222]
[1734858479870,2.10910874,183.83,183.79,2.7222]
[1734858480065,2.7216,183.84,183.79,2.7222]
[1734858480267,2.7219,183.82,183.78,2.78]
[1734858480674,2.7219,183.82,183.77,2.7225]
[1734858480875,2.7216,183.84,183.77,2.7225]
[1734858481076,2.10856263,183.83,183.75,13.97913541]
[1734858481272,2.10856263,183.82,183.75,2.25614609]
[1734858481576,2.7218,183.82,183.77,2.7226]
[1734858482177,2.7217,183.83,183.78,2.7224]
[1734858482477,10.68348932,183.87,183.79,2.78]
[1734858482678,2.10861233,183.86,183.79,2.78]
[1734858482977,2.10861233,183.85,183.79,2.78]
[1734858483172,2.10861233,183.84,183.79,2.78]
[1734858483475,10.68348932,183.87,183.79,2.78]
[1734858483676,2.10676056,183.86,183.79,2.78]
[1734858483877,2.10676056,183.85,183.79,2.78]
[1734858484177,2.10676056,183.84,183.79,2.78]
[1734858484378,2.10676056,183.83,183.79,2.78]
[1734858484571,10.68348932,183.87,183.76,12.27338932]
[1734858484778,2.10647297,183.86,183.77,2.78]
[1734858485077,2.10647297,183.85,183.77,2.78]
[1734858485275,2.10647297,183.84,183.77,2.78]
[1734858485476,4.82827297,183.83,183.78,2.7224]
[1734858485676,2.10647297,183.82,183.78,2.7224]
[1734858489975,2.10647297,183.82,183.79,2.7221]
[1734858490281,2.7215,183.85,183.77,2.78]
[1734858490580,2.10124176,183.84,183.79,8.94298932]
[1734858490776,1.7328,183.89,183.79,8.94298932]
[1734858490980,2.10188691,183.88,183.79,8.94298932]
[1734858491183,2.10225257,183.87,183.82,2.7217]
[1734858491477,2.10225257,183.86,183.82,5.5017]
[1734858491683,2.721,183.88,183.83,2.7217]
[1734858491884,2.10287912,183.87,183.83,2.7217]
[1734858492085,2.10287912,183.86,183.83,2.7217]
[1734858492382,2.721,183.88,183.83,2.7217]
[1734858492579,1.7328,183.89,183.82,2.78]
[1734858492580,2.10340726,183.87,183.84,2.7215]
[1734858492781,2.10340726,183.86,183.82,2.78]
[1734858492981,10.62138932,183.92,183.82,2.78]
[1734858493285,2.7207,183.9,183.85,2.7214]
[1734858493481,2.10417535,183.89,183.86,2.78]
[1734858493676,2.10417535,183.88,183.86,2.78]
[1734858493876,2.10417535,183.87,183.86,2.78]
[1734858494188,2.10467847,183.89,183.76,63.43626716]
[1734858494376,2.7211,183.87,183.82,2.7218]
[1734858494577,2.10467847,183.86,183.82,5.5018]
[1734858494776,2.7211,183.87,183.82,5.5018]
[1734858494978,2.10500167,183.86,183.82,5.5018]
[1734858495179,2.7211,183.87,183.83,2.7217]
[1734858495378,2.10495311,183.86,183.83,2.7217]
[1734858495583,8.94298932,183.92,183.83,2.7217]
[1734858495584,2.7209,183.89,183.83,2.7217]
[1734858495789,2.10567221,183.88,183.83,2.7217]
[1734858495989,2.10567221,183.87,183.84,2.7215]
[1734858496189,2.7209,183.89,183.84,2.7215]
[1734858496490,2.10610486,183.88,183.84,2.7215]
[1734858496789,2.10610486,183.87,183.84,2.7215]
[1734858497091,2.7209,183.89,183.84,2.7215]
[1734858497285,2.10713945,183.88,183.84,2.7215]
[1734858497481,2.10713945,183.87,183.84,2.7215]
[1734858497686,2.7209,183.89,183.84,2.7215]
[1734858497889,2.10820485,183.88,183.84,2.7215]
[1734858498090,2.7209,183.89,183.85,2.7214]
[1734858498391,2.10825372,183.88,183.85,2.7214]
[1734858498692,2.10825372,183.87,183.85,2.78]
[1734858498989,2.10825372,183.86,183.85,2.78]
[1734858499491,2.10825372,183.86,183.83,5.5016]
[1734858499690,2.7211,183.87,183.83,5.5016]
[1734858499899,2.10646844,183.86,183.83,5.5016]
[1734858500196,2.721,183.88,183.83,5.5016]
[1734858500395,2.10676791,183.87,183.83,5.5016]
[1734858500596,2.10602801,183.86,183.83,5.5016]
[1734858500797,2.721,183.88,183.83,5.5016]
[1734858500989,2.10556233,183.87,183.84,2.7215]
[1734858501188,2.721,183.88,183.84,2.7215]
[1734858501393,2.10551944,183.87,183.83,2.78]
[1734858501599,2.7207,183.9,183.83,2.78]
[1734858501799,2.10545698,183.89,183.85,2.7213]
[1734858502000,2.10545698,183.88,183.83,2.78]
[1734858502195,2.7207,183.9,183.83,2.78]
[1734858502392,2.10547851,183.89,183.83,2.78]
[1734858502596,2.10547851,183.88,183.83,2.78]
[1734858502795,11.66358932,183.91,183.83,2.78]
[1734858502995,2.10557866,183.9,183.83,2.78]
[1734858503197,2.10558295,183.89,183.83,2.78]
[1734858503397,2.10558295,183.88,183.86,2.7212]
[1734858503599,11.66358932,183.91,183.86,2.7212]
[1734858503796,2.10548139,183.9,183.86,2.7212]
[1734858503996,2.10548139,183.89,183.86,2.7212]
[1734858504301,2.10548139,183.88,183.86,2.7212]
[1734858504499,2.10548139,183.87,183.86,2.7212]
[1734858504799,2.7207,183.9,183.86,2.7212]
[1734858505000,2.10523084,183.89,183.86,2.7212]
[1734858505201,2.10523084,183.88,183.86,2.7212]
[1734858505400,2.7207,183.9,183.86,2.7212]
[1734858505698,2.10630051,183.89,183.86,2.7212]
[1734858505902,2.10630051,183.88,183.86,2.7212]
[1734858506107,2.7207,183.9,183.86,2.7212]
[1734858506306,2.1065282,183.89,183.86,2.7212]
[1734858506603,2.1065282,183.88,183.87,5.5011]
[1734858506798,10.53888932,183.94,183.87,2.78]
[1734858506996,2.10687432,183.93,183.87,2.78]
[1734858507201,2.10687432,183.92,183.87,2.78]
[1734858507397,2.10687432,183.91,183.87,2.78]
[1734858507600,2.10687432,183.9,183.87,2.78]
[1734858507800,2.10687432,183.89,183.87,2.78]
[1734858508000,10.53888932,183.94,183.87,2.78]
[1734858508200,2.1070041,183.93,183.87,2.78]
[1734858508401,2.7207,183.91,183.87,5.5011]
[1734858508600,2.1070041,183.9,183.87,5.5011]
[1734858508805,2.1070041,183.89,183.87,5.5011]
[1734858508998,2.7207,183.91,183.87,5.5011]
[1734858509201,2.10745679,183.9,183.87,5.5011]
[1734858509406,2.10745679,183.89,183.87,5.5011]
[1734858509604,2.7207,183.91,183.87,5.5011]
[1734858509802,2.10742114,183.9,183.87,5.5011]
[1734858510106,2.10742114,183.89,183.88,2.721]
[1734858510307,2.10742114,183.89,183.87,2.78]
[1734858510504,2.7202,183.93,183.87,2.78]
[1734858510505,8.94298932,183.95,183.87,2.78]
[1734858510704,2.10768806,183.94,183.87,2.78]
[1734858510904,2.10768806,183.94,183.9,2.7206]
[1734858510905,2.10768806,183.93,183.9,2.7206]
[1734858511103,2.10768806,183.92,183.91,2.78]
[1734858512105,2.7201,183.94,183.91,2.78]
[1734858512303,2.10844003,183.93,183.91,2.78]
[1734858512502,2.10844003,183.92,183.91,2.78]
[1734858512904,2.10844003,183.92,183.84,4.8385]
[1734858512905,2.10844003,183.92,183.88,2.7208]
[1734858513105,2.10844003,183.91,183.88,2.78]
[1734858513304,2.10844003,183.9,183.88,2.78]
[1734858513507,2.10844003,183.89,183.88,5.501]
[1734858513811,2.10844003,183.89,183.88,2.78]
[1734858514012,2.10844003,183.94,183.88,2.78]
[1734858514314,2.10844003,183.93,183.88,2.78]
[1734858514612,2.10844003,183.92,183.88,2.78]
[1734858514812,2.10844003,183.91,183.88,2.78]
[1734858515106,8.94298932,183.95,183.88,2.78]
[1734858515305,2.10997524,183.94,183.88,2.78]
[1734858515510,2.10997524,183.93,183.88,2.78]
[1734858515706,2.10997524,183.92,183.86,2.7212]
[1734858515906,2.10997524,183.91,183.89,2.78]
[1734858516106,2.7203,183.93,183.89,2.78]
[1734858516308,2.10950853,183.92,183.89,2.78]
[1734858516510,2.10950853,183.91,183.89,2.78]
[1734858516716,2.7203,183.93,183.89,2.78]
[1734858517015,2.10947872,183.92,183.89,2.78]
[1734858517211,2.10947872,183.91,183.89,2.78]
[1734858517411,2.7203,183.93,183.89,5.5007]
[1734858517611,2.10838742,183.92,183.89,5.5007]
[1734858517811,2.10838742,183.91,183.89,5.5007]
[1734858518007,2.7203,183.93,183.89,5.5007]
[1734858518206,2.10797557,183.92,183.89,2.78]
[1734858518408,2.72,183.95,183.89,2.78]
[1734858518616,2.10774969,183.94,183.89,2.78]
[1734858518811,2.10774969,183.93,183.9,2.7206]
[1734858519016,2.10774969,183.92,183.9,2.7206]
[1734858519215,2.72,183.95,183.9,2.7206]
[1734858519415,2.10807158,183.94,183.9,2.7206]
[1734858519613,2.10807158,183.93,183.91,2.7204]
[1734858519817,2.7198,183.96,183.89,2.78]
[1734858520011,2.1081682,183.95,183.89,2.78]
[1734858520312,2.1081682,183.94,183.9,2.7206]
[1734858520507,2.7198,183.96,183.89,2.78]
[1734858520713,2.1066286,183.95,183.89,2.78]
[1734858520913,2.1066286,183.94,183.89,2.78]
[1734858521211,12.80264231,183.98,183.89,2.78]
[1734858521411,2.1061704,183.97,183.92,2.7202]
[1734858521618,2.1061704,183.96,183.93,2.78]
[1734858521814,6.57925299,183.98,183.94,2.78]
[1734858521815,2.1061704,183.95,183.94,2.78]
[1734858522519,4.8260704,183.95,183.94,2.78]
[1734858523021,4.8260704,183.95,183.91,2.7205]
[1734858523220,2.1061704,183.94,183.92,2.78]
[1734858523420,2.7201,183.94,183.92,2.78]
[1734858524720,2.7201,183.94,183.9,2.7207]
[1734858524921,2.7201,183.94,183.91,2.78]
[1734858525420,12.80264231,183.98,183.91,2.78]
[1734858525622,2.10781187,183.97,183.91,2.78]
[1734858525921,2.10781187,183.96,183.91,2.78]
[1734858526116,2.7202,183.94,183.91,2.78]
[1734858531223,12.80264231,183.98,183.91,2.78]
[1734858531525,8.94298932,183.95,183.85,8.94298932]
[1734858531720,2.10678158,183.94,183.86,2.78]
[1734858531921,2.7206,183.91,183.86,5.5011]
[1734858532421,2.10638174,183.9,183.86,2.78]
[1734858532622,2.7206,183.91,183.86,2.78]
[1734858532918,2.10640988,183.9,183.87,2.78]
[1734858533118,4.4196,183.96,183.88,2.7209]
[1734858533324,2.10783325,183.95,183.87,2.78]
[1734858533526,2.10783325,183.94,183.87,2.78]
[1734858533726,4.82813325,183.93,183.88,2.7208]
[1734858534021,2.10783325,183.92,183.88,2.7208]
[1734858534223,2.10783325,183.91,183.88,2.7208]
[1734858534414,2.7203,183.93,183.88,2.7208]
[1734858534621,2.10861845,183.92,183.88,2.7208]
[1734858534821,2.10861845,183.91,183.88,2.7208]
[1734858535020,2.7203,183.93,183.88,2.7208]
[1734858535221,2.10949862,183.92,183.88,2.7208]
[1734858535427,2.10949862,183.91,183.88,2.7208]
[1734858535623,2.10949862,183.9,183.88,2.7208]
[1734858535828,2.7203,183.93,183.88,2.7208]
[1734858536224,2.10956585,183.92,183.88,2.7208]
[1734858536430,2.10956585,183.91,183.88,2.7208]
[1734858536625,2.7203,183.93,183.88,2.7208]
[1734858536826,2.11003595,183.92,183.88,2.7208]
[1734858537128,2.11003595,183.91,183.88,2.7208]
[1734858537329,2.7203,183.93,183.88,2.7208]
[1734858537529,2.11006037,183.92,183.88,2.7208]
[1734858537729,2.11006037,183.91,183.88,2.7208]
[1734858537930,2.7203,183.93,183.88,2.7208]
[1734858538130,2.11003043,183.92,183.89,2.7207]
[1734858538332,2.11003043,183.91,183.87,2.78]
[1734858538531,2.7201,183.94,183.87,2.78]
[1734858538726,2.11015701,183.93,183.88,2.7208]
[1734858538927,2.11015701,183.92,183.87,2.78]
[1734858539128,2.11015701,183.91,183.87,2.78]
[1734858539323,2.7201,183.94,183.87,2.78]
[1734858539629,2.11048108,183.93,183.87,2.78]
[1734858539930,2.11048108,183.92,183.89,2.7207]
[1734858540130,2.11075744,183.91,183.89,2.7207]
[1734858540332,2.7201,183.94,183.89,2.7207]
[1734858540538,2.11075534,183.93,183.89,2.7207]
[1734858540739,2.11075534,183.92,183.89,2.7207]
[1734858540928,2.11075534,183.91,183.89,2.7207]
[1734858541127,2.7201,183.94,183.9,2.7206]
[1734858541334,2.11119884,183.93,183.91,11.72298932]
[1734858541631,3.85965299,183.98,183.91,11.72298932]
[1734858541828,2.11202501,183.97,183.94,2.72]
[1734858542025,2.11202501,183.96,183.95,2.78]
[1734858542426,2.11202501,183.96,183.95,5.4999]
[1734858542628,2.11202501,183.97,183.95,5.4999]
[1734858542827,2.11202501,183.96,183.95,5.4999]
[1734858543132,2.11202501,183.97,183.95,5.4999]
[1734858543334,2.11202501,183.96,183.95,5.4999]
[1734858543538,2.11202501,183.96,183.95,2.78]
[1734858544233,2.11182094,183.96,183.91,2.7205]
[1734858544427,2.11182094,183.95,183.91,2.78]
[1734858544634,2.11092718,183.94,183.91,2.78]
[1734858544832,2.11092718,183.93,183.91,2.78]
[1734858545031,3.85965299,183.98,183.91,2.78]
[1734858545233,2.11113248,183.97,183.91,2.78]
[1734858545438,2.11113248,183.96,183.91,2.78]
[1734858545639,2.11113248,183.95,183.91,2.78]
[1734858545838,2.11113248,183.94,183.91,2.78]
[1734858546034,2.11113248,183.93,183.91,2.78]
[1734858546332,2.11113248,183.92,183.91,2.78]
[1734858547141,2.110611,183.92,183.91,2.78]
[1734858549132,2.110611,183.92,183.9,2.78]